fUSD/lending_fUSD_20240329
["ID","MTS","AMOUNT","RATE_DAILY","PERIOD"]
[320914375,1711707058114,-500.0,0.00049315,120]
[320914376,1711707058123,-500.0,0.00049315,30]
[320914377,1711707058132,-500.0,0.00049315,120]
[320914378,1711707058141,-500.0,0.00049315,120]
[320914379,1711707058150,-516.48771165,0.00049315,120]
[320914380,1711707058159,-500.0,0.00049315,120]
[320914381,1711707058169,-592.42,0.00049315,120]
[320914382,1711707058179,-500.0,0.00049315,120]
[320914383,1711707058190,-500.0,0.00049315,120]
[320914384,1711707058200,-500.0,0.00049315,120]
[320914385,1711707058209,-500.0,0.00049315,120]
[320914386,1711707058218,-500.0,0.00049315,120]
[320914387,1711707058229,-500.0,0.00049315,120]
[320914388,1711707058239,-508.40289345,0.00049315,120]
[320914389,1711707058250,-722.38,0.00049315,120]
[320914390,1711707058259,-160.91784074,0.00049315,120]
[320914391,1711707058268,-500.0,0.00049315,120]
[320914392,1711707058278,-500.0,0.00049315,120]
[320914393,1711707058287,-504.33604223,0.00049315,120]
[320914394,1711707058297,-500.0,0.00049315,120]
[320914395,1711707058307,-517.26447023,0.00049315,120]
[320914396,1711707058317,-500.0,0.00049315,120]
[320914397,1711707058326,-514.15056645,0.00049315,120]
[320914398,1711707058335,-500.0,0.00049315,120]
[320914399,1711707058345,-500.0,0.00049315,120]
[320914400,1711707058354,-500.0,0.00049315,120]
[320914401,1711707058363,-517.34216125,0.00049315,120]
[320914402,1711707058373,-500.0,0.00049315,120]
[320914403,1711707058382,-500.0,0.00049315,120]
[320914404,1711707058391,-500.0,0.00049315,120]
[320914405,1711707058400,-526.84176422,0.00049315,120]
[320914406,1711707058409,-500.0,0.00049315,120]
[320914407,1711707058418,-501.94970516,0.00049315,120]
[320914408,1711707058428,-500.0,0.00049315,120]
[320914409,1711707058436,-500.0,0.00049315,120]
[320914410,1711707058445,-500.0,0.00049315,120]
[320914411,1711707058454,-500.0,0.00049315,120]
[320914412,1711707058464,-500.0,0.00049315,120]
[320914413,1711707058473,-500.0,0.00049315,120]
[320914414,1711707058482,-540.35,0.00049315,120]
[320914415,1711707058492,-500.0,0.00049315,120]
[320914416,1711707058501,-500.0,0.00049315,120]
[320914417,1711707058516,-500.0,0.00049315,120]
[320914418,1711707058536,-500.0,0.00049315,120]
[320914419,1711707058550,-500.0,0.00049315,120]
[320914420,1711707058569,-500.0,0.00049315,120]
[320914421,1711707058586,-515.54528582,0.00049315,120]
[320914422,1711707058602,-503.33160077,0.00049315,120]
[320914423,1711707058618,-500.0,0.00049315,120]
[320914424,1711707058636,-500.0,0.00049315,120]
[320914425,1711707058653,-500.0,0.00049315,120]
[320914426,1711707058667,-513.63858096,0.00049315,120]
[320914427,1711707058685,-500.0,0.00049315,120]
[320914428,1711707058702,-500.0,0.00049315,120]
[320914429,1711707058719,-557.18,0.00049315,120]
[320914430,1711707058736,-500.0,0.00049315,120]
[320914431,1711707058755,-500.0,0.00049315,120]
[320914432,1711707058770,-500.0,0.00049315,120]
[320914433,1711707058781,-519.46839831,0.00049315,120]
[320914434,1711707058797,-500.0,0.00049315,120]
[320914435,1711707058814,-500.0,0.00049315,120]
[320914436,1711707058827,-500.0,0.00049315,120]
[320914437,1711707058840,-500.0,0.00049315,120]
[320914438,1711707058854,-500.0,0.00049315,120]
[320914439,1711707058868,-520.51152739,0.00049315,120]
[320914440,1711707058882,-500.0,0.00049315,120]
[320914441,1711707058895,-500.0,0.00049315,120]
[320914442,1711707058909,-500.0,0.00049315,120]
[320914443,1711707058923,-500.0,0.00049315,120]
[320914444,1711707058936,-500.0,0.00049315,120]
[320914445,1711707058950,-506.10892577,0.00049315,120]
[320914446,1711707058963,-500.0,0.00049315,120]
[320914447,1711707058977,-500.0,0.00049315,120]
[320914448,1711707058991,-500.0,0.00049315,120]
[320914449,1711707059004,-500.0,0.00049315,120]
[320914450,1711707059018,-500.0,0.00049315,120]
[320914451,1711707059031,-519.24042003,0.00049315,120]
[320914452,1711707059045,-500.0,0.00049315,120]
[320914453,1711707059061,-500.0,0.00049315,120]
[320914454,1711707059075,-500.0,0.00049315,120]
[320914455,1711707059088,-501.67739848,0.00049315,120]
[320914456,1711707059103,-500.0,0.00049315,120]
[320914457,1711707059117,-580.74,0.00049315,120]
[320914458,1711707059131,-500.0,0.00049315,120]
[320914459,1711707059144,-500.0,0.00049315,120]
[320914460,1711707059158,-513.50453937,0.00049315,120]
[320914461,1711707059172,-504.11148672,0.00049315,120]
[320914462,1711707059185,-500.0,0.00049315,120]
[320914463,1711707059198,-500.0,0.00049315,120]
[320914464,1711707059211,-500.0,0.00049315,120]
[320914465,1711707059225,-500.0,0.00049315,120]
[320914466,1711707059239,-500.0,0.00049315,120]
[320914467,1711707059253,-500.0,0.00049315,120]
[320914468,1711707059267,-500.0,0.00049315,120]
[320914469,1711707059280,-500.0,0.00049315,120]
[320914470,1711707059295,-1538.82,0.00049315,120]
[320914471,1711707059309,-500.0,0.00049315,120]
[320914472,1711707059323,-531.41128616,0.00049315,120]
[320914473,1711707059336,-500.0,0.00049315,120]
[320914474,1711707059352,-514.07159408,0.00049315,120]
[320914475,1711707059366,-500.0,0.00049315,120]
[320914476,1711707059380,-500.0,0.00049315,120]
[320914477,1711707059394,-500.0,0.00049315,120]
[320914478,1711707059408,-500.0,0.00049315,120]
[320914479,1711707059421,-733.58,0.00049315,120]
[320914480,1711707059435,-500.0,0.00049315,2]
[320914481,1711707059448,-504.21052555,0.00049315,2]
[320914482,1711707059462,-541.57012991,0.00049315,120]
[320914483,1711707059476,-500.0,0.00049315,120]
[320914484,1711707059490,-500.0,0.00049315,120]
[320914485,1711707059504,-500.0,0.00049315,120]
[320914486,1711707059518,-500.0,0.00049315,120]
[320914487,1711707059532,-525.4839094,0.00049315,120]
[320914488,1711707059546,-500.0,0.00049315,120]
[320914489,1711707059560,-1281.65,0.00049315,120]
[320914490,1711707059573,-500.0,0.00049315,120]
[320914491,1711707059587,-586.62,0.00049315,120]
[320914492,1711707059602,-505.50947751,0.00049315,120]
[320914493,1711707059615,-500.0,0.00049315,120]
[320914494,1711707059631,-500.0,0.00049315,120]
[320914495,1711707059644,-502.33848273,0.00049315,120]
[320914496,1711707059660,-1120.28,0.00049315,120]
[320914497,1711707059674,-500.0,0.00049315,120]
[320914498,1711707059689,-500.0,0.00049315,120]
[320914499,1711707059703,-520.21895908,0.00049315,120]
[320914500,1711707059718,-500.0,0.00049315,120]
[320914501,1711707059733,-500.0,0.00049315,120]
[320914502,1711707059748,-500.0,0.00049315,120]
[320914503,1711707059763,-599.93,0.00049315,120]
[320914504,1711707059777,-486.62165316,0.00049315,120]
[320914505,1711707059786,-500.0,0.00049315,120]
[320914506,1711707059796,-500.0,0.00049315,120]
[320914507,1711707059805,-500.0,0.00049315,120]
[320914508,1711707059816,-505.0428754,0.00049315,120]
[320914509,1711707059826,-515.87044304,0.00049315,120]
[320914510,1711707059835,-1317.16,0.00049315,120]
[320914511,1711707059846,-530.86229193,0.00049315,120]
[320914512,1711707059855,-4410.4,0.00049315,120]
[320914513,1711707059865,-1495.55,0.00049315,120]
[320914514,1711707059875,-500.0,0.00049315,120]
[320914515,1711707059884,-500.0,0.00049315,120]
[320914516,1711707059894,-500.0,0.00049315,120]
[320914517,1711707059903,-528.9533122,0.00049315,120]
[320914518,1711707060118,-500.0,0.00049315,120]
[320914519,1711707060214,-500.0,0.00049315,120]
[320914520,1711707060234,-500.0,0.00049315,120]
[320914521,1711707060244,-500.0,0.00049315,120]
[320914522,1711707060253,-500.0,0.00049315,120]
[320914523,1711707060263,-431.76610699,0.00049315,120]
[320914524,1711707060273,-533.3056286,0.00049315,4]
[320914525,1711707060283,-500.0,0.00049315,120]
[320914526,1711707060292,-21196.2,0.00049315,120]
[320914527,1711707060302,-511.52518678,0.00049315,120]
[320914528,1711707060311,-500.0,0.00049315,120]
[320914529,1711707060321,-352.79972245,0.00049315,120]
[320914530,1711707060331,-500.0,0.00049315,120]
[320914531,1711707060340,-500.0,0.00049315,120]
[320914532,1711707060353,-510.39417788,0.00049315,120]
[320914533,1711707060363,-500.0,0.00049315,120]
[320914534,1711707060372,-530.57528867,0.00049315,120]
[320914535,1711707060382,-514.06569952,0.00049315,120]
[320914536,1711707060392,-500.0,0.00049315,120]
[320914537,1711707060401,-1227.73,0.00049315,120]
[320914538,1711707060411,-500.0,0.00049315,120]
[320914539,1711707060421,-500.0,0.00049315,7]
[320914540,1711707060430,-500.0,0.00049315,120]
[320914541,1711707060440,-1229.95,0.00049315,120]
[320914542,1711707060449,-500.0,0.00049315,120]
[320914543,1711707060459,-500.0,0.00049315,120]
[320914544,1711707060468,-500.0,0.00049315,120]
[320914545,1711707060477,-500.0,0.00049315,120]
[320914546,1711707060486,-527.55229983,0.00049315,120]
[320914547,1711707060496,-500.0,0.00049315,120]
[320914548,1711707060505,-527.32475257,0.00049315,120]
[320914549,1711707060514,-500.0,0.00049315,120]
[320914550,1711707060524,-500.0,0.00049315,120]
[320914551,1711707060534,-500.0,0.00049315,120]
[320914552,1711707060543,-500.0,0.00049315,120]
[320914553,1711707060554,-624.6657297,0.00049315,120]
[320914554,1711707060563,-1803.39,0.00049315,120]
[320914555,1711707060573,-500.0,0.00049315,120]
[320914556,1711707060583,-1577.81,0.00049315,120]
[320914557,1711707060593,-541.39760773,0.00049315,120]
[320914558,1711707060603,-1060.45,0.00049315,120]
[320914559,1711707060612,-524.41929071,0.00049315,120]
[320914560,1711707060622,-500.0,0.00049315,120]
[320914561,1711707060635,-500.0,0.00049315,120]
[320914562,1711707060645,-500.0,0.00049315,120]
[320914563,1711707060656,-596.39896718,0.00049315,2]
[320914564,1711707060668,-500.0,0.00049315,120]
[320914565,1711707060678,-500.0,0.00049315,120]
[320914566,1711707060688,-500.0,0.00049315,120]
[320914567,1711707060698,-500.0,0.00049315,120]
[320914568,1711707060709,-9587.95,0.00049315,120]
[320914569,1711707060719,-860.13,0.00049315,120]
[320914570,1711707060728,-500.0,0.00049315,120]
[320914571,1711707060738,-2161.78,0.00049315,120]
[320914572,1711707060747,-500.0,0.00049315,120]
[320914573,1711707060756,-966.69,0.00049315,120]
[320914574,1711707060767,-525.58219205,0.00049315,120]
[320914575,1711707060776,-523.30280697,0.00049315,120]
[320914576,1711707060786,-500.0,0.00049315,120]
[320914577,1711707060795,-507.01882768,0.00049315,120]
[320914578,1711707060805,-500.0,0.00049315,120]
[320914579,1711707060816,-500.0,0.00049315,120]
[320914580,1711707060827,-535.78852356,0.00049315,120]
[320914581,1711707060837,-500.0,0.00049315,120]
[320914582,1711707060848,-500.0,0.00049315,120]
[320914583,1711707060857,-1285.99,0.00049315,120]
[320914584,1711707060867,-500.0,0.00049315,120]
[320914585,1711707060877,-514.78248016,0.00049315,120]
[320914586,1711707060888,-525.03653477,0.00049315,120]
[320914587,1711707060898,-204.97781118,0.00049315,120]
[320914588,1711707060908,-4270.37,0.00049315,120]
[320914589,1711707060918,-500.0,0.00049315,120]
[320914590,1711707060927,-1701.83,0.00049315,120]
[320914591,1711707060937,-500.0,0.00049315,120]
[320914592,1711707060947,-500.0,0.00049315,120]
[320914593,1711707060957,-562.82698565,0.00049315,120]
[320914594,1711707060967,-500.0,0.00049315,120]
[320914595,1711707060976,-542.49,0.00049315,120]
[320914596,1711707060985,-513.82806008,0.00049315,120]
[320914597,1711707060994,-500.0,0.00049315,120]
[320914598,1711707061004,-174.81189889,0.00049315,120]
[320914599,1711707061013,-2656.93,0.00049315,120]
[320914600,1711707061023,-1021.55,0.00049315,120]
[320914601,1711707061032,-944.56,0.00049315,120]
[320914602,1711707061041,-500.0,0.00049315,120]
[320914603,1711707061051,-500.0,0.00049315,120]
[320914604,1711707061060,-1033.6,0.00049315,120]
[320914605,1711707061069,-2596.43,0.00049315,120]
[320914606,1711707061078,-522.8955595,0.00049315,120]
[320914607,1711707061087,-815.59,0.00049315,120]
[320914608,1711707061098,-500.0,0.00049315,120]
[320914609,1711707061107,-500.0,0.00049315,120]
[320914610,1711707061116,-500.0,0.00049315,120]
[320914611,1711707061126,-868.76,0.00049315,120]
[320914612,1711707061135,-500.0,0.00049315,120]
[320914613,1711707061145,-649.47,0.00049315,120]
[320914614,1711707061154,-503.77450253,0.00049315,120]
[320914615,1711707061163,-1617.32,0.00049315,120]
[320914616,1711707061173,-1186.75,0.00049315,120]
[320914617,1711707061182,-508.0501297,0.00049315,120]
[320914618,1711707061192,-500.0,0.00049315,120]
[320914619,1711707061201,-516.91394753,0.00049315,120]
[320914620,1711707061211,-696.46,0.00049315,120]
[320914621,1711707061220,-582.24,0.00049315,120]
[320914622,1711707061230,-507.03098204,0.00049315,120]
[320914623,1711707061239,-926.41,0.00049315,120]
[320914624,1711707061248,-500.0,0.00049315,120]
[320914625,1711707061258,-500.0,0.00049315,120]
[320914626,1711707061267,-500.0,0.00049315,120]
[320914627,1711707061276,-500.0,0.00049315,120]
[320914628,1711707061285,-500.0,0.00049315,120]
[320914629,1711707061296,-695.54,0.00049315,120]
[320914630,1711707061305,-614.07,0.00049315,120]
[320914631,1711707061315,-1345.46,0.00049315,120]
[320914632,1711707061324,-3650.97,0.00049315,120]
[320914633,1711707061334,-1899.41,0.00049315,120]
[320914634,1711707061343,-502.25175716,0.00049315,120]
[320914635,1711707061354,-500.0,0.00049315,120]
[320914636,1711707061363,-500.0,0.00049315,120]
[320914637,1711707061373,-500.0,0.00049315,120]
[320914638,1711707061382,-1552.25,0.00049315,120]
[320914639,1711707061391,-509.97738141,0.00049315,120]
[320914640,1711707061401,-708.04,0.00049315,120]
[320914641,1711707061411,-308.40172798,0.00049315,120]
[320914642,1711707061421,-1123.35,0.00049315,120]
[320914643,1711707061430,-1154.17,0.00049315,120]
[320914644,1711707061441,-500.0,0.00049315,120]
[320914645,1711707061450,-500.0,0.00049315,120]
[320914646,1711707061460,-500.0,0.00049315,120]
[320914647,1711707061469,-765.28,0.00049315,120]
[320914648,1711707061478,-500.0,0.00049315,120]
[320914649,1711707061487,-500.0,0.00049315,120]
[320914650,1711707061497,-3507.52,0.00049315,120]
[320914651,1711707061506,-500.0,0.00049315,120]
[320914652,1711707061515,-1463.06,0.00049315,120]
[320914653,1711707061524,-505.9080685,0.00049315,120]
[320914654,1711707061534,-515.7113183,0.00049315,120]
[320914655,1711707061543,-7619.28,0.00049315,120]
[320914656,1711707061552,-500.0,0.00049315,120]
[320914657,1711707061562,-500.0,0.00049315,120]
[320914658,1711707061571,-500.0,0.00049315,120]
[320914659,1711707061581,-526.45997425,0.00049315,120]
[320914660,1711707061590,-505.77753421,0.00049315,120]
[320914661,1711707061599,-1367.82,0.00049315,120]
[320914662,1711707061609,-613.99,0.00049315,120]
[320914663,1711707061618,-1455.5,0.00049315,120]
[320914664,1711707061631,-547.6,0.00049315,120]
[320914665,1711707061642,-500.0,0.00049315,120]
[320914666,1711707061651,-512.39750333,0.00049315,120]
[320914667,1711707061660,-1145.85,0.00049315,120]
[320914668,1711707061670,-3472.6,0.00049315,120]
[320914669,1711707061680,-500.0,0.00049315,120]
[320914670,1711707061690,-1014.79,0.00049315,120]
[320914671,1711707061699,-524.55983495,0.00049315,120]
[320914672,1711707061712,-500.0,0.00049315,120]
[320914673,1711707061721,-534.61930809,0.00049315,120]
[320914674,1711707061730,-515.36278248,0.00049315,120]
[320914675,1711707061739,-502.80415764,0.00049315,120]
[320914676,1711707061748,-500.0,0.00049315,120]
[320914677,1711707061757,-2108.68,0.00049315,120]
[320914678,1711707061766,-537.72073474,0.00049315,120]
[320914679,1711707061775,-500.0,0.00049315,120]
[320914680,1711707061784,-513.73463759,0.00049315,120]
[320914681,1711707061793,-500.0,0.00049315,120]
[320914682,1711707061803,-1073.63,0.00049315,120]
[320914683,1711707061812,-1834.53,0.00049315,120]
[320914684,1711707061821,-500.0,0.00049315,120]
[320914685,1711707061830,-524.063777,0.00049315,120]
[320914686,1711707061840,-500.0,0.00049315,120]
[320914687,1711707061850,-519.67209712,0.00049315,120]
[320914688,1711707061859,-507.7745337,0.00049315,120]
[320914689,1711707061868,-12623.99,0.00049315,120]
[320914690,1711707061877,-1236.06,0.00049315,120]
[320914691,1711707061887,-1337.66,0.00049315,120]
[320914692,1711707061896,-500.0,0.00049315,120]
[320914693,1711707061906,-513.98252064,0.00049315,120]
[320914694,1711707061916,-500.0,0.00049315,120]
[320914695,1711707061926,-503.24012657,0.00049315,120]
[320914696,1711707061935,-500.0,0.00049315,120]
[320914697,1711707061944,-500.0,0.00049315,120]
[320914698,1711707061953,-500.0,0.00049315,120]
[320914699,1711707061963,-506.56641889,0.00049315,120]
[320914700,1711707061972,-513.36,0.00049315,120]
[320914701,1711707061982,-710.94,0.00049315,120]
[320914702,1711707061991,-1108.55,0.00049315,120]
[320914703,1711707062000,-505.55057451,0.00049315,120]
[320914704,1711707062010,-500.0,0.00049315,120]
[320914705,1711707062020,-500.0,0.00049315,120]
[320914706,1711707062029,-500.0,0.00049315,120]
[320914707,1711707062038,-500.0,0.00049315,120]
[320914708,1711707062048,-513.72944863,0.00049315,120]
[320914709,1711707062057,-500.0,0.00049315,120]
[320914710,1711707062066,-509.88608253,0.00049315,120]
[320914711,1711707062075,-524.62080036,0.00049315,120]
[320914712,1711707062085,-500.0,0.00049315,120]
[320914713,1711707062096,-1513.08,0.00049315,120]
[320914714,1711707062105,-1029.0,0.00049315,120]
[320914715,1711707062114,-500.0,0.00049315,120]
[320914716,1711707062123,-500.0,0.00049315,120]
[320914717,1711707062133,-500.0,0.00049315,120]
[320914718,1711707062142,-500.0,0.00049315,120]
[320914719,1711707062151,-500.0,0.00049315,120]
[320914720,1711707062160,-532.34,0.00049315,120]
[320914721,1711707062169,-500.0,0.00049315,120]
[320914722,1711707062178,-500.0,0.00049315,120]
[320914723,1711707062187,-500.0,0.00049315,120]
[320914724,1711707062196,-522.27429923,0.00049315,120]
[320914725,1711707062206,-2637.0,0.00049315,120]
[320914726,1711707062215,-282.82205472,0.00049315,120]
[320914727,1711707062224,-500.0,0.00049315,120]
[320914728,1711707062234,-500.0,0.00049315,120]
[320914729,1711707062243,-500.0,0.00049315,120]
[320914730,1711707062252,-500.0,0.00049315,120]
[320914731,1711707062261,-929.24,0.00049315,120]
[320914732,1711707062270,-532.53,0.00049315,120]
[320914733,1711707062280,-500.0,0.00049315,120]
[320914734,1711707062290,-500.0,0.00049315,120]
[320914735,1711707062299,-523.05695151,0.00049315,120]
[320914736,1711707062309,-500.0,0.00049315,120]
[320914737,1711707062318,-502.0305974,0.00049315,120]
[320914738,1711707062327,-1577.93,0.00049315,120]
[320914739,1711707062337,-500.0,0.00049315,60]
[320914740,1711707062347,-502.76684124,0.00049315,120]
[320914741,1711707062356,-499.97371114,0.00049315,120]
[320914742,1711707062366,-500.0,0.00049315,120]
[320914743,1711707062375,-607.96,0.00049315,120]
[320914744,1711707062384,-500.0,0.00049315,120]
[320914745,1711707062393,-3505.19,0.00049315,120]
[320914746,1711707062403,-529.71758758,0.00049315,120]
[320914747,1711707062412,-519.18711962,0.00049315,120]
[320914748,1711707062422,-2029.61,0.00049315,120]
[320914749,1711707062431,-500.0,0.00049315,120]
[320914750,1711707062440,-524.47463355,0.00049315,120]
[320914751,1711707062449,-502.2365121,0.00049315,120]
[320914752,1711707062459,-1592.45,0.00049315,60]
[320914753,1711707062468,-500.0,0.00049315,120]
[320914754,1711707062477,-500.0,0.00049315,120]
[320914755,1711707062487,-296.41055645,0.00049315,120]
[320914756,1711707062496,-500.0,0.00049315,120]
[320914757,1711707062505,-1662.32,0.00049315,120]
[320914758,1711707062515,-514.90991188,0.00049315,120]
[320914759,1711707062524,-3958.3,0.00049315,120]
[320914760,1711707062533,-500.0,0.00049315,120]
[320914761,1711707062542,-522.59,0.00049315,120]
[320914762,1711707062552,-520.92281813,0.00049315,120]
[320914763,1711707062562,-511.11079666,0.00049315,120]
[320914764,1711707062571,-1563.52,0.00049315,21]
[320914765,1711707062581,-539.37732361,0.00049315,120]
[320914766,1711707062590,-519.78623981,0.00049315,120]
[320914767,1711707062603,-547.45,0.00049315,120]
[320914768,1711707062613,-1594.99,0.00049315,120]
[320914769,1711707062622,-725.61,0.00049315,120]
[320914770,1711707062634,-500.0,0.00049315,120]
[320914771,1711707062643,-500.0,0.00049315,120]
[320914772,1711707062653,-1007.23,0.00049315,120]
[320914773,1711707062663,-520.67128124,0.00049315,120]
[320914774,1711707062673,-1325.4,0.00049315,120]
[320914775,1711707062683,-500.0,0.00049315,120]
[320914776,1711707062693,-500.0,0.00049315,120]
[320914777,1711707062703,-500.0,0.00049315,120]
[320914778,1711707062716,-500.0,0.00049315,120]
[320914779,1711707062726,-500.0,0.00049315,120]
[320914780,1711707062736,-500.0,0.00049315,120]
[320914781,1711707062745,-273.90479485,0.00049315,120]
[320914782,1711707062755,-1456.84,0.00049315,120]
[320914783,1711707062764,-2343.18,0.00049315,120]
[320914784,1711707062774,-2382.95,0.00049315,120]
[320914785,1711707062784,-1458.33,0.00049315,120]
[320914786,1711707062794,-623.04,0.00049315,120]
[320914787,1711707062803,-272.09958707,0.00049315,120]
[320914788,1711707062813,-503.23494447,0.00049315,120]
[320914789,1711707062823,-500.0,0.00049315,120]
[320914790,1711707062832,-506.35917147,0.00049315,120]
[320914791,1711707062842,-500.0,0.00049315,120]
[320914792,1711707062856,-500.0,0.00049315,120]
[320914793,1711707062865,-514.15,0.00049315,120]
[320914794,1711707062875,-500.0,0.00049315,120]
[320914795,1711707062885,-788.21,0.00049315,120]
[320914796,1711707062895,-917.23,0.00049315,120]
[320914797,1711707062904,-500.0,0.00049315,120]
[320914798,1711707062914,-500.0,0.00049315,120]
[320914799,1711707062924,-500.0,0.00049315,120]
[320914800,1711707062934,-519.29211142,0.00049315,120]
[320914801,1711707062943,-500.0,0.00049315,120]
[320914802,1711707062953,-516.23401488,0.00049315,120]
[320914803,1711707062962,-500.0,0.00049315,120]
[320914804,1711707062972,-526.70255043,0.00049315,120]
[320914805,1711707062982,-500.0,0.00049315,120]
[320914806,1711707062991,-1139.31,0.00049315,120]
[320914807,1711707063000,-502.82935017,0.00049315,120]
[320914808,1711707063010,-500.0,0.00049315,120]
[320914809,1711707063019,-500.0,0.00049315,120]
[320914810,1711707063028,-500.0,0.00049315,120]
[320914811,1711707063038,-500.0,0.00049315,120]
[320914812,1711707063048,-512.95884529,0.00049315,120]
[320914813,1711707063057,-493.75362726,0.00049315,120]
[320914814,1711707063067,-1695.65,0.00049315,120]
[320914815,1711707063077,-573.84,0.00049315,120]
[320914816,1711707063087,-778.81,0.00049315,120]
[320914817,1711707063099,-500.0,0.00049315,120]
[320914818,1711707063108,-504.53107726,0.00049315,120]
[320914819,1711707063119,-500.0,0.00049315,120]
[320914820,1711707063129,-659.15,0.00049315,120]
[320914821,1711707063139,-1000.0,0.00049315,120]
[320914822,1711707063149,-522.77757389,0.00049315,120]
[320914823,1711707063159,-500.0,0.00049315,120]
[320914824,1711707063169,-500.0,0.00049315,120]
[320914825,1711707063179,-500.0,0.00049315,120]
[320914826,1711707063190,-605.01928714,0.00049315,120]
[320914827,1711707063200,-1202.77,0.00049315,120]
[320914828,1711707063210,-500.0,0.00049315,120]
[320914829,1711707063221,-704.23,0.00049315,120]
[320914830,1711707063231,-1099.58,0.00049315,120]
[320914831,1711707063241,-500.0,0.00049315,120]
[320914832,1711707063251,-517.72474083,0.00049315,120]
[320914833,1711707063261,-500.0,0.00049315,120]
[320914834,1711707063271,-500.0,0.00049315,120]
[320914835,1711707063281,-516.47592615,0.00049315,120]
[320914836,1711707063290,-691.96,0.00049315,120]
[320914837,1711707063301,-500.0,0.00049315,120]
[320914838,1711707063311,-691.96,0.00049315,120]
[320914839,1711707063321,-505.98168618,0.00049315,120]
[320914840,1711707063331,-1879.97,0.00049315,120]
[320914841,1711707063341,-691.96,0.00049315,120]
[320914842,1711707063497,-691.96,0.00049315,120]
[320914843,1711707063519,-500.0,0.00049315,120]
[320914844,1711707063529,-691.96,0.00049315,120]
[320914845,1711707063539,-691.96,0.00049315,120]
[320914846,1711707063549,-691.96,0.00049315,120]
[320914847,1711707063558,-691.96,0.00049315,120]
[320914848,1711707063568,-691.96,0.00049315,120]
[320914849,1711707063578,-691.96,0.00049315,120]
[320914850,1711707063587,-500.0,0.00049315,120]
[320914851,1711707063600,-500.0,0.00049315,120]
[320914852,1711707063609,-691.96,0.00049315,120]
[320914853,1711707063620,-691.96,0.00049315,120]
[320914854,1711707063633,-691.96,0.00049315,120]
[320914855,1711707063643,-691.96,0.00049315,120]
[320914856,1711707063653,-691.96,0.00049315,120]
[320914857,1711707063663,-691.96,0.00049315,120]
[320914858,1711707063674,-1766.69,0.00049315,120]
[320914859,1711707063684,-691.96,0.00049315,120]
[320914860,1711707063693,-691.96,0.00049315,120]
[320914861,1711707063703,-1122.61,0.00049315,120]
[320914862,1711707063714,-500.0,0.00049315,120]
[320914863,1711707063723,-691.96,0.00049315,120]
[320914864,1711707063733,-500.0,0.00049315,120]
[320914865,1711707063743,-1044.66,0.00049315,120]
[320914866,1711707063753,-691.96,0.00049315,120]
[320914867,1711707063762,-691.96,0.00049315,120]
[320914868,1711707063772,-500.0,0.00049315,120]
[320914869,1711707063781,-691.96,0.00049315,120]
[320914870,1711707063791,-691.96,0.00049315,120]
[320914871,1711707063800,-500.0,0.00049315,120]
[320914872,1711707063810,-497.3339031,0.00049315,2]
[320914873,1711707063820,-692.18518298,0.00049315,120]
[320914874,1711707063830,-500.0,0.00049315,120]